[Event "*** SCC Grand Prix: Titled Tuesday Blitz"]
[Site "Chess.com"]
[Date "2020.06.23"]
[Round "9"]
[White "Kumi29"]
[Black "Quiet_Desperation"]
[Result "0-1"]
[WhiteElo "2379"]
[BlackElo "1982"]
[TimeControl "180+1"]
[EndTime "11:44:34 PDT"]
[Termination "Quiet_Desperation won by resignation"]

1. e4 {[%clk 0:03:00.9]} 1... e6 {[%clk 0:02:59.8]} 2. Qe2 {[%clk 0:03:00.4]}
2... c5 {[%clk 0:02:59.4]} 3. b3 {[%clk 0:02:59.6]} 3... Nc6 {[%clk 0:02:59.8]}
4. Nf3 {[%clk 0:02:59.2]} 4... d6 {[%clk 0:03:00.1]} 5. Bb2 {[%clk 0:02:58.7]}
5... e5 {[%clk 0:03:00.4]} 6. Nc3 {[%clk 0:02:57.2]} 6... Bg4 {[%clk 0:02:59.8]}
7. Nd5 {[%clk 0:02:31.2]} 7... Nf6 {[%clk 0:02:56.4]} 8. h3 {[%clk 0:02:27.5]}
8... Bd7 {[%clk 0:02:38.9]} 9. O-O-O {[%clk 0:02:24.6]} 9... Nd4 {[%clk
0:02:25.2]} 10. Nxd4 {[%clk 0:02:09.6]} 10... cxd4 {[%clk 0:02:24.7]} 11. f4
{[%clk 0:02:08.3]} 11... Be7 {[%clk 0:02:21.4]} 12. Ba3 {[%clk 0:01:51.8]} 12...
Nxd5 {[%clk 0:02:15.9]} 13. exd5 {[%clk 0:01:51.8]} 13... O-O {[%clk 0:02:15.3]}
14. Kb2 {[%clk 0:01:39.3]} 14... Re8 {[%clk 0:02:09.2]} 15. fxe5 {[%clk
0:01:35]} 15... dxe5 {[%clk 0:02:07.3]} 16. Bxe7 {[%clk 0:01:35.9]} 16... Qxe7
{[%clk 0:02:05.7]} 17. g4 {[%clk 0:01:32.2]} 17... a5 {[%clk 0:02:05.1]} 18. a4
{[%clk 0:01:31.1]} 18... b5 {[%clk 0:02:04.2]} 19. axb5 {[%clk 0:01:29.3]} 19...
a4 {[%clk 0:02:03.7]} 20. Ra1 {[%clk 0:01:28.8]} 20... axb3 {[%clk 0:02:03.8]}
21. Ra6 {[%clk 0:01:23.5]} 21... bxc2 {[%clk 0:01:53.8]} 22. Kxc2 {[%clk
0:01:23.2]} 22... Rec8+ {[%clk 0:01:50.8]} 23. Kd1 {[%clk 0:01:22.7]} 23... Rxa6
{[%clk 0:01:45.2]} 24. bxa6 {[%clk 0:01:22.6]} 24... Ba4+ {[%clk 0:01:42.3]} 25.
Ke1 {[%clk 0:01:23]} 25... Qh4+ {[%clk 0:01:41.9]} 26. Qf2 {[%clk 0:01:23.6]}
26... Rc1+ {[%clk 0:01:38.8]} 27. Ke2 {[%clk 0:01:23.6]} 27... Bd1+ {[%clk
0:01:36.1]} 28. Kd3 {[%clk 0:01:19.2]} 28... Qxf2 {[%clk 0:01:34.5]} 29. a7
{[%clk 0:01:20.1]} 29... Rc3+ {[%clk 0:01:23.9]} 30. dxc3 {[%clk 0:01:15.8]}
30... Qc2+ {[%clk 0:01:23.6]} 31. Kc4 {[%clk 0:01:16.3]} 31... Qxc3+ {[%clk
0:01:23.3]} 32. Kb5 {[%clk 0:01:16.8]} 32... Qb3+ {[%clk 0:01:18.3]} 33. Kc6
{[%clk 0:01:15.5]} 33... Qa4+ {[%clk 0:01:14.4]} 34. Kb6 {[%clk 0:01:10.8]}
34... Qb4+ {[%clk 0:01:11.2]} 35. Bb5 {[%clk 0:01:09.7]} 35... Qd6+ {[%clk
0:01:06.2]} 36. Kb7 {[%clk 0:00:58.4]} 36... Qxd5+ {[%clk 0:01:02.4]} 37. Bc6
{[%clk 0:00:58.7]} 37... Qxc6+ {[%clk 0:00:52.3]} 38. Kxc6 {[%clk 0:00:59.6]}
38... Bf3+ {[%clk 0:00:52.4]} 39. Kd6 {[%clk 0:00:56.9]} 39... Bxh1 {[%clk
0:00:52.2]} 40. Kxe5 {[%clk 0:00:57.4]} 40... d3 {[%clk 0:00:52.7]} 0-1

[Event "*** SCC Grand Prix: Titled Tuesday Blitz"]
[Site "Chess.com"]
[Date "2020.06.23"]
[Round "9"]
[White "Grineva_Marianna"]
[Black "ljuks68"]
[Result "0-1"]
[WhiteElo "2193"]
[BlackElo "2365"]
[TimeControl "180+1"]
[EndTime "11:44:42 PDT"]
[Termination "ljuks68 won by checkmate"]

1. e4 {[%clk 0:03:00.9]} 1... e6 {[%clk 0:02:59.5]} 2. d4 {[%clk 0:03:00.3]}
2... d5 {[%clk 0:02:59.7]} 3. Nd2 {[%clk 0:02:59.7]} 3... Nf6 {[%clk 0:02:58.8]}
4. e5 {[%clk 0:02:57.9]} 4... Nfd7 {[%clk 0:02:59.3]} 5. Bd3 {[%clk 0:02:57.4]}
5... c5 {[%clk 0:02:59.4]} 6. c3 {[%clk 0:02:57.7]} 6... Nc6 {[%clk 0:02:59.6]}
7. Ne2 {[%clk 0:02:57.6]} 7... cxd4 {[%clk 0:02:58]} 8. cxd4 {[%clk 0:02:58.5]}
8... f6 {[%clk 0:02:58.4]} 9. exf6 {[%clk 0:02:57.8]} 9... Qxf6 {[%clk
0:02:58.4]} 10. Nf3 {[%clk 0:02:54.2]} 10... h6 {[%clk 0:02:58.5]} 11. O-O
{[%clk 0:02:53]} 11... Bd6 {[%clk 0:02:57.7]} 12. Ng3 {[%clk 0:02:49.4]} 12...
O-O {[%clk 0:02:57]} 13. Re1 {[%clk 0:02:49.5]} 13... Rf7 {[%clk 0:02:56.7]} 14.
Nh5 {[%clk 0:02:41.2]} 14... Qe7 {[%clk 0:02:56.2]} 15. Bg6 {[%clk 0:02:38.9]}
15... Rf8 {[%clk 0:02:47.1]} 16. a3 {[%clk 0:02:20.2]} 16... e5 {[%clk
0:02:27.3]} 17. dxe5 {[%clk 0:02:17.1]} 17... Ndxe5 {[%clk 0:02:27.4]} 18. Nxe5
{[%clk 0:01:58.7]} 18... Nxe5 {[%clk 0:02:25.2]} 19. Qxd5+ {[%clk 0:01:48.8]}
19... Be6 {[%clk 0:02:24]} 20. Qe4 {[%clk 0:01:47.6]} 20... Bd7 {[%clk
0:01:46.7]} 21. Bh7+ {[%clk 0:01:30.4]} 21... Kh8 {[%clk 0:01:45.8]} 22. Bd2
{[%clk 0:01:23.8]} 22... Bc6 {[%clk 0:01:44.3]} 23. Qc2 {[%clk 0:01:18.3]} 23...
Qh4 {[%clk 0:01:29.2]} 24. Ng3 {[%clk 0:00:55.9]} 24... Ng4 {[%clk 0:01:28.4]}
25. h3 {[%clk 0:00:35]} 25... Nxf2 {[%clk 0:01:26.8]} 26. Nf5 {[%clk 0:00:22]}
26... Nxh3+ {[%clk 0:01:26.3]} 27. gxh3 {[%clk 0:00:15.8]} 27... Rxf5 {[%clk
0:01:23.4]} 28. Re4 {[%clk 0:00:06.5]} 28... Qg3+ {[%clk 0:01:21.8]} 29. Kh1
{[%clk 0:00:04.6]} 29... Rf2 {[%clk 0:01:21.8]} 30. Bf4 {[%clk 0:00:03]} 30...
Qg2# {[%clk 0:01:21.3]} 0-1

[Event "*** SCC Grand Prix: Titled Tuesday Blitz"]
[Site "Chess.com"]
[Date "2020.06.23"]
[Round "9"]
[White "Iskusnyh"]
[Black "H3nriqueTV"]
[Result "1-0"]
[WhiteElo "2456"]
[BlackElo "2226"]
[TimeControl "180+1"]
[EndTime "11:44:46 PDT"]
[Termination "Iskusnyh won by resignation"]

1. d4 {[%clk 0:03:00.9]} 1... d6 {[%clk 0:02:59.3]} 2. Nf3 {[%clk 0:02:59.8]}
2... Nf6 {[%clk 0:02:59.6]} 3. c4 {[%clk 0:02:59.4]} 3... c6 {[%clk 0:02:59.9]}
4. g3 {[%clk 0:02:58.4]} 4... Qc7 {[%clk 0:03:00.2]} 5. Bg2 {[%clk 0:02:58.6]}
5... e5 {[%clk 0:03:00.6]} 6. Nc3 {[%clk 0:02:58.6]} 6... Bf5 {[%clk 0:03:00.8]}
7. O-O {[%clk 0:02:55.4]} 7... Nbd7 {[%clk 0:03:00.5]} 8. Nh4 {[%clk 0:02:46.1]}
8... Bg6 {[%clk 0:03:00]} 9. e4 {[%clk 0:02:44.8]} 9... Be7 {[%clk 0:02:58.8]}
10. Nf5 {[%clk 0:02:40.4]} 10... Bxf5 {[%clk 0:02:58.2]} 11. exf5 {[%clk
0:02:40.3]} 11... O-O {[%clk 0:02:59.1]} 12. d5 {[%clk 0:02:32.9]} 12... Rac8
{[%clk 0:02:53.7]} 13. b3 {[%clk 0:02:25.4]} 13... cxd5 {[%clk 0:02:49.1]} 14.
Nxd5 {[%clk 0:02:24.8]} 14... Nxd5 {[%clk 0:02:49.2]} 15. Qxd5 {[%clk
0:02:25.1]} 15... b6 {[%clk 0:02:47.4]} 16. Be3 {[%clk 0:02:19.6]} 16... Nf6
{[%clk 0:02:47.5]} 17. Qd3 {[%clk 0:02:12.1]} 17... Rfd8 {[%clk 0:02:46.7]} 18.
Rad1 {[%clk 0:02:10.5]} 18... Ng4 {[%clk 0:02:23.7]} 19. Bc1 {[%clk 0:02:07.6]}
19... a5 {[%clk 0:02:15.6]} 20. Qe2 {[%clk 0:01:35.4]} 20... Nf6 {[%clk
0:02:08.6]} 21. g4 {[%clk 0:01:21.3]} 21... h6 {[%clk 0:01:58.7]} 22. h3 {[%clk
0:01:19.7]} 22... Nh7 {[%clk 0:01:46.3]} 23. Rd5 {[%clk 0:01:15.6]} 23... Nf6
{[%clk 0:01:40.2]} 24. Rb5 {[%clk 0:01:14.6]} 24... d5 {[%clk 0:01:27.3]} 25.
cxd5 {[%clk 0:01:08.3]} 25... Bc5 {[%clk 0:01:16]} 26. Be3 {[%clk 0:01:06.3]}
26... Nxd5 {[%clk 0:01:07]} 27. Bxc5 {[%clk 0:01:04.9]} 27... bxc5 {[%clk
0:01:06.3]} 28. Qc4 {[%clk 0:01:04.3]} 28... Nf4 {[%clk 0:01:05.3]} 29. Rb7
{[%clk 0:01:03.3]} 29... Nxh3+ {[%clk 0:00:32.2]} 30. Kh2 {[%clk 0:01:02.6]} 1-0

[Event "*** SCC Grand Prix: Titled Tuesday Blitz"]
[Site "Chess.com"]
[Date "2020.06.23"]
[Round "9"]
[White "Diego_FloresQ"]
[Black "MarcoRiehle"]
[Result "1-0"]
[WhiteElo "2519"]
[BlackElo "2706"]
[TimeControl "180+1"]
[EndTime "11:44:52 PDT"]
[Termination "Diego_FloresQ won by resignation"]

1. e4 {[%clk 0:03:00.9]} 1... e5 {[%clk 0:02:59.3]} 2. Nf3 {[%clk 0:03:00.7]}
2... Nf6 {[%clk 0:02:55.7]} 3. Nxe5 {[%clk 0:02:58.8]} 3... Nxe4 {[%clk
0:02:51.6]} 4. Qe2 {[%clk 0:02:57.6]} 4... Qe7 {[%clk 0:02:51.5]} 5. Qxe4 {[%clk
0:02:56.7]} 5... d6 {[%clk 0:02:51.1]} 6. d4 {[%clk 0:02:46.6]} 6... dxe5 {[%clk
0:02:50.6]} 7. Qxe5 {[%clk 0:02:39.5]} 7... Qxe5+ {[%clk 0:02:50.1]} 8. dxe5
{[%clk 0:02:40.4]} 8... Bf5 {[%clk 0:02:50.4]} 9. c3 {[%clk 0:02:31.9]} 9... Nd7
{[%clk 0:02:46.7]} 10. Bf4 {[%clk 0:02:32.1]} 10... O-O-O {[%clk 0:02:46.2]} 11.
Bc4 {[%clk 0:02:20]} 11... Nxe5 {[%clk 0:02:44.4]} 12. Bxe5 {[%clk 0:02:17.4]}
12... Re8 {[%clk 0:02:38.4]} 13. f4 {[%clk 0:01:28.5]} 13... f6 {[%clk
0:02:37.4]} 14. O-O {[%clk 0:01:27.3]} 14... fxe5 {[%clk 0:02:34.5]} 15. fxe5
{[%clk 0:01:28.2]} 15... Bc5+ {[%clk 0:02:34.3]} 16. Kh1 {[%clk 0:01:28.1]}
16... Rhf8 {[%clk 0:02:31.1]} 17. b4 {[%clk 0:01:16.5]} 17... Bb6 {[%clk
0:02:26.2]} 18. e6 {[%clk 0:00:45.5]} 18... Kd8 {[%clk 0:02:11.4]} 19. Nd2
{[%clk 0:00:44.1]} 19... Ke7 {[%clk 0:02:08.7]} 20. Rae1 {[%clk 0:00:38.4]}
20... c6 {[%clk 0:01:58.3]} 21. Nf3 {[%clk 0:00:36.6]} 21... Rd8 {[%clk
0:01:52]} 22. Ne5 {[%clk 0:00:27.2]} 22... Bc7 {[%clk 0:01:30]} 23. Nd7 {[%clk
0:00:20.5]} 23... g6 {[%clk 0:01:05.2]} 24. Nxf8 {[%clk 0:00:20]} 24... Rxf8
{[%clk 0:01:01.3]} 25. g4 {[%clk 0:00:20.5]} 25... Bxg4 {[%clk 0:00:59.1]} 26.
Rxf8 {[%clk 0:00:20]} 26... Kxf8 {[%clk 0:00:52.9]} 27. e7+ {[%clk 0:00:20.6]}
27... Ke8 {[%clk 0:00:53.3]} 28. Bf7+ {[%clk 0:00:20.8]} 28... Kxf7 {[%clk
0:00:53.5]} 29. e8=Q+ {[%clk 0:00:21.7]} 1-0

[Event "*** SCC Grand Prix: Titled Tuesday Blitz"]
[Site "Chess.com"]
[Date "2020.06.23"]
[Round "9"]
[White "K-Nygren"]
[Black "Iljushin_Alexey"]
[Result "0-1"]
[WhiteElo "2531"]
[BlackElo "2710"]
[TimeControl "180+1"]
[EndTime "11:44:52 PDT"]
[Termination "Iljushin_Alexey won by resignation"]

1. e4 {[%clk 0:03:00]} 1... c6 {[%clk 0:03:00]} 2. d4 {[%clk 0:02:59.5]} 2... d5
{[%clk 0:03:00.5]} 3. e5 {[%clk 0:02:59.9]} 3... Bf5 {[%clk 0:03:00.1]} 4. Nd2
{[%clk 0:02:59.9]} 4... e6 {[%clk 0:02:59.3]} 5. Nb3 {[%clk 0:02:59.9]} 5... Nd7
{[%clk 0:02:58.5]} 6. Be3 {[%clk 0:02:59.7]} 6... Bg6 {[%clk 0:02:55.8]} 7. Nf3
{[%clk 0:02:59]} 7... Ne7 {[%clk 0:02:55.6]} 8. Rc1 {[%clk 0:02:58.6]} 8... Nf5
{[%clk 0:02:55.4]} 9. Be2 {[%clk 0:02:58.7]} 9... h5 {[%clk 0:02:54.9]} 10. O-O
{[%clk 0:02:57.4]} 10... h4 {[%clk 0:02:53.9]} 11. c4 {[%clk 0:02:53.4]} 11...
dxc4 {[%clk 0:02:53.7]} 12. Bxc4 {[%clk 0:02:52.9]} 12... Nb6 {[%clk 0:02:51.4]}
13. Bd3 {[%clk 0:02:46.1]} 13... Nd5 {[%clk 0:02:49.6]} 14. Bd2 {[%clk
0:02:43.3]} 14... Be7 {[%clk 0:02:45.2]} 15. Ne1 {[%clk 0:02:39.5]} 15... a5
{[%clk 0:02:38.7]} 16. Bc4 {[%clk 0:02:11.4]} 16... a4 {[%clk 0:02:34.4]} 17.
Nc5 {[%clk 0:02:11.2]} 17... b5 {[%clk 0:02:22]} 18. Nb7 {[%clk 0:02:03.7]}
18... Qd7 {[%clk 0:02:15.4]} 19. Bxd5 {[%clk 0:01:56.7]} 19... Qxd5 {[%clk
0:02:15.2]} 20. Nd3 {[%clk 0:01:45.9]} 20... h3 {[%clk 0:02:10.5]} 21. Nf4
{[%clk 0:01:44.9]} 21... Qd7 {[%clk 0:02:06.4]} 22. Nxg6 {[%clk 0:01:39.8]}
22... fxg6 {[%clk 0:02:05.3]} 23. Na5 {[%clk 0:01:22.1]} 23... hxg2 {[%clk
0:02:03.6]} 24. Re1 {[%clk 0:01:17.9]} 24... Nxd4 {[%clk 0:01:58.1]} 25. Qg4
{[%clk 0:01:10.9]} 25... Kf7 {[%clk 0:01:46.9]} 26. Bc3 {[%clk 0:01:02.9]} 26...
Nf5 {[%clk 0:01:42.7]} 27. Qxg2 {[%clk 0:00:45.3]} 27... b4 {[%clk 0:01:42.7]}
28. Nxc6 {[%clk 0:00:40.4]} 28... bxc3 {[%clk 0:01:42]} 29. Rxc3 {[%clk
0:00:40.5]} 29... Rac8 {[%clk 0:01:29.2]} 30. Rec1 {[%clk 0:00:33.3]} 30... Qd5
{[%clk 0:01:20]} 31. Qxd5 {[%clk 0:00:26.7]} 31... exd5 {[%clk 0:01:20]} 32. e6+
{[%clk 0:00:26.4]} 32... Kxe6 {[%clk 0:01:17.9]} 33. Nd8+ {[%clk 0:00:20.3]}
33... Rcxd8 {[%clk 0:01:17.1]} 0-1

[Event "*** SCC Grand Prix: Titled Tuesday Blitz"]
[Site "Chess.com"]
[Date "2020.06.23"]
[Round "9"]
[White "mshuaau0"]
[Black "j2806"]
[Result "1-0"]
[WhiteElo "2196"]
[BlackElo "2055"]
[TimeControl "180+1"]
[EndTime "11:44:52 PDT"]
[Termination "mshuaau0 won by resignation"]

1. e4 {[%clk 0:03:00.9]} 1... c5 {[%clk 0:03:00]} 2. Nf3 {[%clk 0:02:59.4]} 2...
d6 {[%clk 0:03:00.3]} 3. d4 {[%clk 0:02:58.9]} 3... cxd4 {[%clk 0:03:00.9]} 4.
Nxd4 {[%clk 0:02:59.8]} 4... Nf6 {[%clk 0:03:01.5]} 5. Nc3 {[%clk 0:02:58.3]}
5... a6 {[%clk 0:03:01.8]} 6. Bg5 {[%clk 0:02:56.6]} 6... e6 {[%clk 0:03:01.6]}
7. f4 {[%clk 0:02:53.8]} 7... Be7 {[%clk 0:03:01.7]} 8. Qf3 {[%clk 0:02:52.8]}
8... Qc7 {[%clk 0:03:01.9]} 9. O-O-O {[%clk 0:02:47.3]} 9... Nbd7 {[%clk
0:03:00.8]} 10. g4 {[%clk 0:02:42.9]} 10... b5 {[%clk 0:02:59.9]} 11. Bxf6
{[%clk 0:02:41.7]} 11... Nxf6 {[%clk 0:02:58.7]} 12. g5 {[%clk 0:02:42]} 12...
Nd7 {[%clk 0:02:58.4]} 13. h4 {[%clk 0:02:33.3]} 13... Bb7 {[%clk 0:02:56]} 14.
Bd3 {[%clk 0:02:32.4]} 14... Nc5 {[%clk 0:02:50.3]} 15. f5 {[%clk 0:02:21.9]}
15... Nxd3+ {[%clk 0:02:35.3]} 16. Qxd3 {[%clk 0:02:18]} 16... e5 {[%clk
0:02:31.7]} 17. Nf3 {[%clk 0:02:09.5]} 17... b4 {[%clk 0:02:08.6]} 18. Nd5
{[%clk 0:02:08.6]} 18... Bxd5 {[%clk 0:02:07.6]} 19. Qxd5 {[%clk 0:02:09.5]}
19... Rc8 {[%clk 0:02:06.5]} 20. Rh2 {[%clk 0:02:08.5]} 20... Qc6 {[%clk
0:02:00]} 21. Qd3 {[%clk 0:01:59]} 21... Qc4 {[%clk 0:01:55.4]} 22. Kb1 {[%clk
0:01:50.9]} 22... Qxd3 {[%clk 0:01:50.3]} 23. cxd3 {[%clk 0:01:50.1]} 23... f6
{[%clk 0:01:50.4]} 24. Rc1 {[%clk 0:01:40.2]} 24... Kd7 {[%clk 0:01:48.8]} 25.
Rhc2 {[%clk 0:01:37.1]} 25... Rxc2 {[%clk 0:01:47.6]} 26. Rxc2 {[%clk
0:01:37.3]} 26... Rc8 {[%clk 0:01:47.7]} 27. Rxc8 {[%clk 0:01:37.9]} 27... Kxc8
{[%clk 0:01:47.9]} 28. Kc2 {[%clk 0:01:35.6]} 28... Kc7 {[%clk 0:01:47.8]} 29.
Kb3 {[%clk 0:01:35.5]} 29... a5 {[%clk 0:01:47]} 30. Ka4 {[%clk 0:01:35.7]}
30... Kb6 {[%clk 0:01:45.8]} 31. g6 {[%clk 0:01:35.4]} 31... h6 {[%clk
0:01:41.3]} 32. Nh2 {[%clk 0:01:30.8]} 32... Bd8 {[%clk 0:01:39.1]} 33. Ng4
{[%clk 0:01:30.9]} 33... Kc5 {[%clk 0:01:32.2]} 34. Kb3 {[%clk 0:01:27]} 34...
Kd4 {[%clk 0:01:28.6]} 35. Kc2 {[%clk 0:01:26.7]} 35... a4 {[%clk 0:01:22.1]}
36. Nxh6 {[%clk 0:01:26.5]} 36... b3+ {[%clk 0:01:21.7]} 37. axb3 {[%clk
0:01:25.2]} 37... axb3+ {[%clk 0:01:21.8]} 38. Kxb3 {[%clk 0:00:56.3]} 38...
Kxd3 {[%clk 0:01:21]} 39. Nf7 {[%clk 0:00:56.9]} 39... Be7 {[%clk 0:01:17.1]}
40. h5 {[%clk 0:00:56.7]} 40... Bf8 {[%clk 0:01:12]} 41. Nxd6 {[%clk 0:00:56.7]}
41... Ke3 {[%clk 0:01:04]} 42. Kc4 {[%clk 0:00:55.5]} 42... Kf4 {[%clk
0:01:03.3]} 43. Kd5 {[%clk 0:00:54.7]} 43... Kg5 {[%clk 0:01:02.7]} 44. b4
{[%clk 0:00:53.4]} 44... Kxh5 {[%clk 0:01:02.1]} 45. b5 {[%clk 0:00:53.1]} 45...
Bxd6 {[%clk 0:01:01.2]} 46. Kxd6 {[%clk 0:00:52.9]} 46... Kg4 {[%clk 0:01:01.7]}
47. b6 {[%clk 0:00:53]} 1-0

[Event "*** SCC Grand Prix: Titled Tuesday Blitz"]
[Site "Chess.com"]
[Date "2020.06.23"]
[Round "9"]
[White "Artem_Koval"]
[Black "tan275"]
[Result "0-1"]
[WhiteElo "2401"]
[BlackElo "2288"]
[TimeControl "180+1"]
[EndTime "11:45:00 PDT"]
[Termination "tan275 won by checkmate"]

1. e4 {[%clk 0:02:49.2]} 1... c6 {[%clk 0:03:00.2]} 2. Nc3 {[%clk 0:02:48.6]}
2... d5 {[%clk 0:02:59.9]} 3. Qf3 {[%clk 0:02:49]} 3... e6 {[%clk 0:02:30]} 4.
e5 {[%clk 0:02:33.8]} 4... c5 {[%clk 0:02:26.9]} 5. Qg3 {[%clk 0:02:33.8]} 5...
Nc6 {[%clk 0:02:25.1]} 6. Nf3 {[%clk 0:02:33.8]} 6... h6 {[%clk 0:02:22.5]} 7.
h4 {[%clk 0:02:33]} 7... a6 {[%clk 0:02:16.5]} 8. a4 {[%clk 0:02:31.8]} 8... g6
{[%clk 0:02:11.4]} 9. Ne2 {[%clk 0:02:22.3]} 9... Bg7 {[%clk 0:02:10]} 10. Nf4
{[%clk 0:02:22.4]} 10... Nge7 {[%clk 0:02:08.1]} 11. Nh5 {[%clk 0:02:16.5]}
11... gxh5 {[%clk 0:01:22.6]} 12. Qxg7 {[%clk 0:02:15.6]} 12... Rg8 {[%clk
0:01:22.1]} 13. Qxh6 {[%clk 0:01:47.7]} 13... Nb4 {[%clk 0:01:18]} 14. Qh7
{[%clk 0:01:42.7]} 14... Rg6 {[%clk 0:01:12.2]} 15. Ng5 {[%clk 0:01:30.6]} 15...
Nxc2+ {[%clk 0:00:54.8]} 16. Kd1 {[%clk 0:01:30.5]} 16... Nxa1 {[%clk
0:00:54.2]} 17. Qxf7+ {[%clk 0:01:30.6]} 17... Kd7 {[%clk 0:00:54.2]} 18. Bd3
{[%clk 0:01:24.4]} 18... Qg8 {[%clk 0:00:34]} 19. Bxg6 {[%clk 0:01:11.7]} 19...
Qxg6 {[%clk 0:00:33.6]} 20. Qf3 {[%clk 0:00:34.7]} 20... Qc2+ {[%clk 0:00:31.9]}
21. Ke2 {[%clk 0:00:33.9]} 21... Nb3 {[%clk 0:00:31.8]} 22. Qc3 {[%clk
0:00:30.8]} 22... Nd4+ {[%clk 0:00:30.8]} 23. Kf1 {[%clk 0:00:24.8]} 23... Qd1#
{[%clk 0:00:29.7]} 0-1

[Event "*** SCC Grand Prix: Titled Tuesday Blitz"]
[Site "Chess.com"]
[Date "2020.06.23"]
[Round "9"]
[White "Onischuk_V"]
[Black "Firouzja2003"]
[Result "0-1"]
[WhiteElo "2908"]
[BlackElo "3140"]
[TimeControl "180+1"]
[EndTime "11:45:01 PDT"]
[Termination "Firouzja2003 won by resignation"]

1. e4 {[%clk 0:02:59.8]} 1... e6 {[%clk 0:02:58.7]} 2. d4 {[%clk 0:02:59.4]}
2... d5 {[%clk 0:02:58.7]} 3. Bd3 {[%clk 0:03:00.1]} 3... dxe4 {[%clk 0:02:55]}
4. Bxe4 {[%clk 0:03:00.4]} 4... Nf6 {[%clk 0:02:54.9]} 5. Bf3 {[%clk 0:03:01.1]}
5... Bd6 {[%clk 0:02:54.6]} 6. Nc3 {[%clk 0:03:00.1]} 6... O-O {[%clk
0:02:53.3]} 7. Nb5 {[%clk 0:02:59.8]} 7... Bb4+ {[%clk 0:02:35.7]} 8. c3 {[%clk
0:02:59.6]} 8... Be7 {[%clk 0:02:33.5]} 9. Bf4 {[%clk 0:02:56.9]} 9... Na6
{[%clk 0:02:32.9]} 10. a4 {[%clk 0:02:55.9]} 10... c6 {[%clk 0:02:31.1]} 11. Na3
{[%clk 0:02:55.6]} 11... c5 {[%clk 0:02:18.6]} 12. Ne2 {[%clk 0:02:54.9]} 12...
cxd4 {[%clk 0:02:16.7]} 13. Qxd4 {[%clk 0:02:38.3]} 13... Qxd4 {[%clk
0:02:14.5]} 14. cxd4 {[%clk 0:02:30.4]} 14... Nb4 {[%clk 0:02:09.2]} 15. O-O
{[%clk 0:02:22.3]} 15... Nfd5 {[%clk 0:01:59.9]} 16. Bg3 {[%clk 0:02:20.9]}
16... Bd7 {[%clk 0:01:59.5]} 17. Nc3 {[%clk 0:02:18.3]} 17... Rfc8 {[%clk
0:01:54.1]} 18. Rfc1 {[%clk 0:02:09.7]} 18... Bc6 {[%clk 0:01:27.1]} 19. Nab5
{[%clk 0:02:05.8]} 19... a6 {[%clk 0:01:02.7]} 20. Nd6 {[%clk 0:02:03.5]} 20...
Bxd6 {[%clk 0:01:01.8]} 21. Bxd6 {[%clk 0:02:03.2]} 21... Nd3 {[%clk 0:00:46.2]}
22. Nxd5 {[%clk 0:01:51.9]} 22... Bxd5 {[%clk 0:00:44]} 23. Rxc8+ {[%clk
0:01:50.5]} 23... Rxc8 {[%clk 0:00:43.6]} 24. Bxd5 {[%clk 0:01:50.1]} 24... exd5
{[%clk 0:00:43.5]} 25. b4 {[%clk 0:01:49.9]} 25... Rc4 {[%clk 0:00:37.3]} 26. b5
{[%clk 0:01:48.2]} 26... f6 {[%clk 0:00:35.9]} 27. Kf1 {[%clk 0:01:33.7]} 27...
Nb2 {[%clk 0:00:35.3]} 28. bxa6 {[%clk 0:01:27.1]} 28... bxa6 {[%clk 0:00:36.2]}
29. a5 {[%clk 0:01:27.4]} 29... Rxd4 {[%clk 0:00:35.9]} 30. Ke2 {[%clk
0:01:16.7]} 30... Re4+ {[%clk 0:00:34.8]} 31. Kf1 {[%clk 0:01:11.2]} 31... Nc4
{[%clk 0:00:29.2]} 32. Bc5 {[%clk 0:01:04.9]} 32... Nd2+ {[%clk 0:00:28.2]} 33.
Kg1 {[%clk 0:01:04.7]} 33... Nb3 {[%clk 0:00:28.8]} 0-1

[Event "*** SCC Grand Prix: Titled Tuesday Blitz"]
[Site "Chess.com"]
[Date "2020.06.23"]
[Round "9"]
[White "politeplayer"]
[Black "Sueetin"]
[Result "1-0"]
[WhiteElo "2192"]
[BlackElo "2336"]
[TimeControl "180+1"]
[EndTime "11:45:04 PDT"]
[Termination "politeplayer won by checkmate"]

1. e4 {[%clk 0:02:57.5]} 1... c6 {[%clk 0:02:59.9]} 2. d4 {[%clk 0:02:56.3]}
2... g6 {[%clk 0:03:00.1]} 3. Nc3 {[%clk 0:02:55.5]} 3... Bg7 {[%clk 0:02:59.9]}
4. h4 {[%clk 0:02:52.7]} 4... d5 {[%clk 0:02:51.5]} 5. h5 {[%clk 0:02:50.7]}
5... dxe4 {[%clk 0:02:49.6]} 6. hxg6 {[%clk 0:02:45.6]} 6... hxg6 {[%clk
0:02:47.8]} 7. Rxh8 {[%clk 0:02:45.3]} 7... Bxh8 {[%clk 0:02:48.7]} 8. Nxe4
{[%clk 0:02:40.8]} 8... Qxd4 {[%clk 0:02:47.7]} 9. Bd3 {[%clk 0:02:35.9]} 9...
Bf5 {[%clk 0:02:42.1]} 10. Nf3 {[%clk 0:02:34.5]} 10... Qb6 {[%clk 0:02:35.4]}
11. Be3 {[%clk 0:02:31.5]} 11... Qa5+ {[%clk 0:02:15.9]} 12. Bd2 {[%clk
0:02:04.9]} 12... Qc7 {[%clk 0:02:14.9]} 13. Qe2 {[%clk 0:01:41]} 13... Bxb2
{[%clk 0:02:13.6]} 14. Rb1 {[%clk 0:01:40.8]} 14... Bxe4 {[%clk 0:02:05.7]} 15.
Bxe4 {[%clk 0:01:35.7]} 15... Bg7 {[%clk 0:02:00.5]} 16. Bxg6 {[%clk 0:01:09.8]}
16... fxg6 {[%clk 0:01:53.4]} 17. Qe6 {[%clk 0:01:09.6]} 17... Nh6 {[%clk
0:00:53.8]} 18. Qxg6+ {[%clk 0:01:07.7]} 18... Kf8 {[%clk 0:00:52.1]} 19. Bxh6
{[%clk 0:01:05.3]} 19... Bxh6 {[%clk 0:00:41.9]} 20. Qxh6+ {[%clk 0:01:03.8]}
20... Ke8 {[%clk 0:00:42.4]} 21. Qh8+ {[%clk 0:00:54.5]} 21... Kd7 {[%clk
0:00:42.4]} 22. Rd1+ {[%clk 0:00:51.2]} 22... Ke6 {[%clk 0:00:40.4]} 23. Qh6+
{[%clk 0:00:31.8]} 23... Kf5 {[%clk 0:00:27.6]} 24. Qg5+ {[%clk 0:00:27.3]}
24... Ke6 {[%clk 0:00:21.4]} 25. Qg6# {[%clk 0:00:26.7]} 1-0